[Event "*** SCC Grand Prix: Titled Tuesday Blitz"]
[Site "Chess.com"]
[Date "2020.08.11"]
[Round "3"]
[White "johnathan113"]
[Black "PlotnikovPavel"]
[Result "1-0"]
[WhiteElo "2693"]
[BlackElo "2424"]
[TimeControl "180+1"]
[EndTime "10:30:46 PDT"]
[Termination "johnathan113 won on time"]

1. d4 {[%clk 0:03:00.9]} 1... e6 {[%clk 0:02:59.6]} 2. Nc3 {[%clk 0:02:59.1]}
2... d5 {[%clk 0:02:58.8]} 3. e4 {[%clk 0:02:59.1]} 3... Nf6 {[%clk 0:02:58.7]}
4. Bg5 {[%clk 0:02:57.8]} 4... Be7 {[%clk 0:02:58.5]} 5. e5 {[%clk 0:02:57]}
5... Nfd7 {[%clk 0:02:58.9]} 6. Bxe7 {[%clk 0:02:56]} 6... Qxe7 {[%clk
0:02:58.8]} 7. f4 {[%clk 0:02:56.9]} 7... O-O {[%clk 0:02:58.5]} 8. Nf3 {[%clk
0:02:57.8]} 8... c5 {[%clk 0:02:58.5]} 9. dxc5 {[%clk 0:02:54.7]} 9... Qxc5
{[%clk 0:02:57.3]} 10. Bd3 {[%clk 0:02:54.6]} 10... Qe3+ {[%clk 0:02:55.9]} 11.
Ne2 {[%clk 0:02:52.3]} 11... f6 {[%clk 0:02:55.6]} 12. exf6 {[%clk 0:02:50.3]}
12... Nxf6 {[%clk 0:02:54.1]} 13. Qd2 {[%clk 0:02:50.6]} 13... Qxd2+ {[%clk
0:02:53.9]} 14. Kxd2 {[%clk 0:02:51.5]} 14... Nc6 {[%clk 0:02:53.1]} 15. Ned4
{[%clk 0:02:50.6]} 15... Bd7 {[%clk 0:02:45.3]} 16. Rae1 {[%clk 0:02:49.9]}
16... Rae8 {[%clk 0:02:43.1]} 17. c3 {[%clk 0:02:46.5]} 17... a6 {[%clk
0:02:24.4]} 18. Re2 {[%clk 0:02:45.6]} 18... Re7 {[%clk 0:02:22]} 19. Rhe1
{[%clk 0:02:45.6]} 19... Rfe8 {[%clk 0:02:22.3]} 20. Nb3 {[%clk 0:02:38.6]}
20... Bc8 {[%clk 0:02:19.2]} 21. Nc5 {[%clk 0:02:36.9]} 21... Nd8 {[%clk
0:02:10]} 22. Nd4 {[%clk 0:02:31.4]} 22... Kf7 {[%clk 0:01:58.5]} 23. Bc2 {[%clk
0:02:24]} 23... b6 {[%clk 0:01:56.8]} 24. Nd3 {[%clk 0:02:24.1]} 24... Kf8
{[%clk 0:01:51.4]} 25. Ne5 {[%clk 0:02:22.5]} 25... Nf7 {[%clk 0:01:41.4]} 26.
Nef3 {[%clk 0:02:08.7]} 26... Nd6 {[%clk 0:01:37.4]} 27. Ng5 {[%clk 0:02:04.3]}
27... e5 {[%clk 0:01:26.4]} 28. Nc6 {[%clk 0:01:52.6]} 28... Nc4+ {[%clk
0:01:21.8]} 29. Kc1 {[%clk 0:01:52]} 29... e4 {[%clk 0:01:14.8]} 30. Nxe7 {[%clk
0:01:51.2]} 30... Rxe7 {[%clk 0:01:15.7]} 31. b3 {[%clk 0:01:41.4]} 31... Nd6
{[%clk 0:01:13.3]} 32. Rd2 {[%clk 0:01:35.1]} 32... h6 {[%clk 0:01:08.8]} 33.
Nh3 {[%clk 0:01:34.4]} 33... Bxh3 {[%clk 0:01:08.4]} 34. gxh3 {[%clk 0:01:34.3]}
34... Nf5 {[%clk 0:01:08]} 35. a4 {[%clk 0:01:24.9]} 35... a5 {[%clk 0:01:06.7]}
36. Kb2 {[%clk 0:01:23.7]} 36... Nh4 {[%clk 0:01:06.1]} 37. Bd1 {[%clk
0:01:21.8]} 37... Nf5 {[%clk 0:00:56.7]} 38. Bg4 {[%clk 0:01:20.4]} 38... Nh4
{[%clk 0:00:56.5]} 39. c4 {[%clk 0:01:12.2]} 39... Nxg4 {[%clk 0:00:49.8]} 40.
Rxd5 {[%clk 0:01:05.8]} 40... Nf3 {[%clk 0:00:41.3]} 41. Re2 {[%clk 0:01:05.8]}
41... Ngxh2 {[%clk 0:00:37.5]} 42. Rd6 {[%clk 0:01:05.2]} 42... Nf1 {[%clk
0:00:36.1]} 43. Rxb6 {[%clk 0:01:02]} 43... Ng3 {[%clk 0:00:35.7]} 44. Re3
{[%clk 0:01:01.8]} 44... Nf5 {[%clk 0:00:34.2]} 45. Re2 {[%clk 0:01:00.3]} 45...
e3 {[%clk 0:00:32]} 46. b4 {[%clk 0:00:33.9]} 46... axb4 {[%clk 0:00:30.7]} 47.
a5 {[%clk 0:00:34.8]} 47... N5d4 {[%clk 0:00:30.2]} 48. Rxe3 {[%clk 0:00:32.9]}
48... Rxe3 {[%clk 0:00:30]} 49. a6 {[%clk 0:00:33.8]} 49... Rb3+ {[%clk
0:00:29.7]} 50. Kc1 {[%clk 0:00:33.1]} 50... Ra3 {[%clk 0:00:27.5]} 51. c5
{[%clk 0:00:32.2]} 51... b3 {[%clk 0:00:24.9]} 52. c6 {[%clk 0:00:31.6]} 52...
Ra1+ {[%clk 0:00:23.6]} 53. Kb2 {[%clk 0:00:31.6]} 53... Ra2+ {[%clk 0:00:23.8]}
54. Kc3 {[%clk 0:00:32.2]} 54... Ne6 {[%clk 0:00:20]} 55. f5 {[%clk 0:00:29.8]}
55... Rc2+ {[%clk 0:00:17.4]} 56. Kxb3 {[%clk 0:00:28.7]} 56... Nfd4+ {[%clk
0:00:17.7]} 57. Ka3 {[%clk 0:00:29]} 57... Nc5 {[%clk 0:00:16.1]} 58. a7 {[%clk
0:00:26.1]} 58... Rc3+ {[%clk 0:00:15.1]} 59. Kb4 {[%clk 0:00:25.2]} 59... Nxc6+
{[%clk 0:00:10.7]} 60. Rxc6 {[%clk 0:00:17.2]} 60... Nd3+ {[%clk 0:00:10.7]} 61.
Kxc3 {[%clk 0:00:17.3]} 1-0

[Event "*** SCC Grand Prix: Titled Tuesday Blitz"]
[Site "Chess.com"]
[Date "2020.08.11"]
[Round "3"]
[White "Shahinyan_ChessMood"]
[Black "hansen"]
[Result "1/2-1/2"]
[WhiteElo "2691"]
[BlackElo "2929"]
[TimeControl "180+1"]
[EndTime "10:30:48 PDT"]
[Termination "Game drawn by stalemate"]

1. e4 {[%clk 0:03:00.9]} 1... c5 {[%clk 0:02:52.1]} 2. Nc3 {[%clk 0:03:00]} 2...
e6 {[%clk 0:02:43.1]} 3. g3 {[%clk 0:02:58.8]} 3... Nc6 {[%clk 0:02:43]} 4. Bg2
{[%clk 0:02:58.5]} 4... d6 {[%clk 0:02:41]} 5. d3 {[%clk 0:02:55.3]} 5... g6
{[%clk 0:02:40.9]} 6. Be3 {[%clk 0:02:53.8]} 6... Bg7 {[%clk 0:02:40.9]} 7. Qd2
{[%clk 0:02:54.4]} 7... Nd4 {[%clk 0:02:41.4]} 8. Nd1 {[%clk 0:02:53.8]} 8... b5
{[%clk 0:02:35.3]} 9. c3 {[%clk 0:02:52.3]} 9... Nc6 {[%clk 0:02:35.7]} 10. Ne2
{[%clk 0:02:47.6]} 10... b4 {[%clk 0:02:33.4]} 11. O-O {[%clk 0:02:45.8]} 11...
bxc3 {[%clk 0:02:33.1]} 12. bxc3 {[%clk 0:02:46.7]} 12... Rb8 {[%clk 0:02:31.9]}
13. h3 {[%clk 0:02:41.9]} 13... Nge7 {[%clk 0:02:21.7]} 14. Bh6 {[%clk
0:02:41.3]} 14... O-O {[%clk 0:02:19.9]} 15. Bxg7 {[%clk 0:02:40.9]} 15... Kxg7
{[%clk 0:02:20.8]} 16. Ne3 {[%clk 0:02:40.8]} 16... Ba6 {[%clk 0:02:18.3]} 17.
f4 {[%clk 0:02:20.6]} 17... f5 {[%clk 0:02:15.3]} 18. exf5 {[%clk 0:02:19.4]}
18... exf5 {[%clk 0:02:06.9]} 19. g4 {[%clk 0:02:19.1]} 19... Qd7 {[%clk
0:02:04.1]} 20. Ng3 {[%clk 0:02:18.2]} 20... d5 {[%clk 0:01:59.9]} 21. Kh2
{[%clk 0:02:01.7]} 21... d4 {[%clk 0:01:59.2]} 22. cxd4 {[%clk 0:01:45]} 22...
Qxd4 {[%clk 0:01:57.6]} 23. Rac1 {[%clk 0:01:25.5]} 23... Rb2 {[%clk 0:01:50.8]}
24. Rc2 {[%clk 0:01:10.3]} 24... Rxc2 {[%clk 0:01:48.5]} 25. Nxc2 {[%clk
0:01:10.6]} 25... Qxd3 {[%clk 0:01:47.9]} 26. Qc1 {[%clk 0:01:09.5]} 26... Qd6
{[%clk 0:01:21.9]} 27. Rd1 {[%clk 0:01:00.2]} 27... Nd4 {[%clk 0:01:21.7]} 28.
Qa3 {[%clk 0:00:37.8]} 28... Rd8 {[%clk 0:01:15.1]} 29. gxf5 {[%clk 0:00:34]}
29... Nexf5 {[%clk 0:01:08.5]} 30. Nxf5+ {[%clk 0:00:33.6]} 30... gxf5 {[%clk
0:01:07.3]} 31. Nxd4 {[%clk 0:00:26.8]} 31... cxd4 {[%clk 0:01:03.8]} 32. Qg3+
{[%clk 0:00:27.2]} 32... Kh8 {[%clk 0:00:59.5]} 33. Qg5 {[%clk 0:00:19.5]} 33...
Be2 {[%clk 0:00:35.8]} 34. Rg1 {[%clk 0:00:17.1]} 34... Rg8 {[%clk 0:00:21.1]}
35. Qxf5 {[%clk 0:00:14.2]} 35... Rf8 {[%clk 0:00:09.2]} 36. Qd5 {[%clk
0:00:04.2]} 36... Qxf4+ {[%clk 0:00:08.8]} 37. Kh1 {[%clk 0:00:03.4]} 37... d3
{[%clk 0:00:09.2]} 38. Be4 {[%clk 0:00:03.4]} 38... Bf3+ {[%clk 0:00:05.5]} 39.
Bxf3 {[%clk 0:00:02.8]} 39... Qxf3+ {[%clk 0:00:06.4]} 40. Qxf3 {[%clk 0:00:03]}
40... Rxf3 {[%clk 0:00:07.3]} 41. Kg2 {[%clk 0:00:03.9]} 41... Re3 {[%clk
0:00:07]} 42. Rd1 {[%clk 0:00:04.4]} 42... Kg7 {[%clk 0:00:04.5]} 43. a4 {[%clk
0:00:04.6]} 43... Kf6 {[%clk 0:00:04.1]} 44. Rb1 {[%clk 0:00:03]} 44... d2
{[%clk 0:00:02.5]} 45. Rd1 {[%clk 0:00:02.9]} 45... Rd3 {[%clk 0:00:02.6]} 46.
Kf2 {[%clk 0:00:01.3]} 46... Kf5 {[%clk 0:00:02.1]} 47. Ke2 {[%clk 0:00:01.8]}
47... Ke4 {[%clk 0:00:02.6]} 48. Rf1 {[%clk 0:00:01.4]} 48... d1=Q+ {[%clk
0:00:02.7]} 49. Rxd1 {[%clk 0:00:02.3]} 49... Rxd1 {[%clk 0:00:03.6]} 50. Kxd1
{[%clk 0:00:03.2]} 50... Kf3 {[%clk 0:00:04.5]} 51. Kd2 {[%clk 0:00:03.4]} 51...
Kg3 {[%clk 0:00:05]} 52. Ke3 {[%clk 0:00:04]} 52... Kxh3 {[%clk 0:00:05.5]} 53.
Kf4 {[%clk 0:00:04.4]} 53... h5 {[%clk 0:00:05.3]} 54. Kf3 {[%clk 0:00:04]}
54... h4 {[%clk 0:00:05.9]} 55. a5 {[%clk 0:00:04.1]} 55... a6 {[%clk
0:00:05.5]} 56. Kf2 {[%clk 0:00:03.6]} 56... Kg4 {[%clk 0:00:05.7]} 57. Kg2
{[%clk 0:00:04.5]} 57... Kf4 {[%clk 0:00:05.1]} 58. Kh3 {[%clk 0:00:04.9]} 58...
Ke4 {[%clk 0:00:06]} 59. Kxh4 {[%clk 0:00:05.8]} 59... Kd4 {[%clk 0:00:06.9]}
60. Kg3 {[%clk 0:00:06]} 60... Kc4 {[%clk 0:00:07.8]} 61. Kf2 {[%clk 0:00:06.9]}
61... Kb4 {[%clk 0:00:08.7]} 62. Ke1 {[%clk 0:00:07.8]} 62... Kxa5 {[%clk
0:00:09.6]} 63. Kd1 {[%clk 0:00:08.7]} 63... Kb4 {[%clk 0:00:10.5]} 64. Kc1
{[%clk 0:00:09.6]} 64... Ka3 {[%clk 0:00:11.4]} 65. Kb1 {[%clk 0:00:10.5]} 65...
Kb3 {[%clk 0:00:11.7]} 66. Ka1 {[%clk 0:00:11.4]} 66... a5 {[%clk 0:00:07.6]}
67. Kb1 {[%clk 0:00:12.3]} 67... a4 {[%clk 0:00:07.8]} 68. Ka1 {[%clk
0:00:13.2]} 68... a3 {[%clk 0:00:04.3]} 69. Kb1 {[%clk 0:00:14.1]} 69... a2+
{[%clk 0:00:03.8]} 70. Ka1 {[%clk 0:00:15]} 70... Ka3 {[%clk 0:00:03.6]} 1/2-1/2

[Event "*** SCC Grand Prix: Titled Tuesday Blitz"]
[Site "Chess.com"]
[Date "2020.08.11"]
[Round "3"]
[White "Steven_Rojas"]
[Black "pheonixking2000"]
[Result "1-0"]
[WhiteElo "2452"]
[BlackElo "2721"]
[TimeControl "180+1"]
[EndTime "10:30:49 PDT"]
[Termination "Steven_Rojas won by resignation"]

1. c4 {[%clk 0:02:59.1]} 1... e5 {[%clk 0:02:57.6]} 2. Nc3 {[%clk 0:02:57.5]}
2... Nf6 {[%clk 0:02:55]} 3. Nf3 {[%clk 0:02:56.7]} 3... Nc6 {[%clk 0:02:55.1]}
4. e3 {[%clk 0:02:55.9]} 4... Bb4 {[%clk 0:02:54]} 5. Qc2 {[%clk 0:02:54.1]}
5... Bxc3 {[%clk 0:02:51.9]} 6. Qxc3 {[%clk 0:02:53.8]} 6... Qe7 {[%clk
0:02:52.6]} 7. d4 {[%clk 0:02:49.5]} 7... Ne4 {[%clk 0:02:47.1]} 8. Qd3 {[%clk
0:02:49.3]} 8... exd4 {[%clk 0:02:36.2]} 9. Nxd4 {[%clk 0:02:48.7]} 9... Qb4+
{[%clk 0:02:34.1]} 10. Bd2 {[%clk 0:02:48.1]} 10... Nxd2 {[%clk 0:02:30]} 11.
Qxd2 {[%clk 0:02:47.8]} 11... Nxd4 {[%clk 0:02:26.4]} 12. exd4 {[%clk
0:02:42.9]} 12... Qxd2+ {[%clk 0:02:20.9]} 13. Kxd2 {[%clk 0:02:43.5]} 13... d6
{[%clk 0:02:20.7]} 14. Be2 {[%clk 0:02:30.9]} 14... Bf5 {[%clk 0:02:19.8]} 15.
Bf3 {[%clk 0:02:30.2]} 15... c6 {[%clk 0:02:18.4]} 16. h4 {[%clk 0:02:15.8]}
16... h6 {[%clk 0:02:16.1]} 17. h5 {[%clk 0:02:10.2]} 17... Kd7 {[%clk
0:02:14.3]} 18. Rh4 {[%clk 0:02:08]} 18... f6 {[%clk 0:02:06.7]} 19. Rf4 {[%clk
0:01:51.9]} 19... Be6 {[%clk 0:01:53.7]} 20. d5 {[%clk 0:01:42.9]} 20... cxd5
{[%clk 0:01:54.6]} 21. cxd5 {[%clk 0:01:41.6]} 21... Bf7 {[%clk 0:01:51.2]} 22.
Rc1 {[%clk 0:01:30.3]} 22... Rhe8 {[%clk 0:01:40.4]} 23. Rg4 {[%clk 0:01:08]}
23... Rg8 {[%clk 0:01:06.6]} 24. Rgc4 {[%clk 0:01:07.7]} 24... Rab8 {[%clk
0:00:38.2]} 25. Rc7+ {[%clk 0:01:06.9]} 25... Ke8 {[%clk 0:00:38]} 26. Re1+
{[%clk 0:01:05.1]} 26... Kf8 {[%clk 0:00:38.4]} 27. Ree7 {[%clk 0:01:05.4]}
27... Be8 {[%clk 0:00:38.6]} 28. Rxb7 {[%clk 0:00:57.4]} 28... Rxb7 {[%clk
0:00:36.6]} 29. Rxb7 {[%clk 0:00:57.8]} 29... a5 {[%clk 0:00:37.5]} 30. g4
{[%clk 0:00:49.5]} 30... g6 {[%clk 0:00:35.2]} 31. hxg6 {[%clk 0:00:31.4]} 31...
Rxg6 {[%clk 0:00:36.1]} 32. Rh7 {[%clk 0:00:30]} 32... Kg8 {[%clk 0:00:32.4]}
33. Re7 {[%clk 0:00:28.9]} 33... Kf8 {[%clk 0:00:23.9]} 34. Re6 {[%clk
0:00:28.8]} 34... Bd7 {[%clk 0:00:23.3]} 35. Rxd6 {[%clk 0:00:28.5]} 35... Ke7
{[%clk 0:00:23.8]} 36. Ra6 {[%clk 0:00:27.9]} 36... Bxg4 {[%clk 0:00:24.2]} 37.
Be4 {[%clk 0:00:23.5]} 37... Rg5 {[%clk 0:00:21.8]} 38. Rxa5 {[%clk 0:00:20.6]}
38... h5 {[%clk 0:00:17.5]} 39. Ke3 {[%clk 0:00:20.3]} 39... h4 {[%clk
0:00:16.5]} 40. Ra7+ {[%clk 0:00:20.6]} 40... Kd6 {[%clk 0:00:16]} 41. Rh7
{[%clk 0:00:18.8]} 41... h3 {[%clk 0:00:14]} 42. a4 {[%clk 0:00:18.6]} 42... Bc8
{[%clk 0:00:09.7]} 43. a5 {[%clk 0:00:16.3]} 43... Rg1 {[%clk 0:00:10.1]} 44. b4
{[%clk 0:00:15.5]} 44... Ra1 {[%clk 0:00:08.2]} 45. Kd4 {[%clk 0:00:13.1]} 45...
Rd1+ {[%clk 0:00:08.1]} 46. Kc4 {[%clk 0:00:13]} 46... Rc1+ {[%clk 0:00:06.7]}
47. Kb5 {[%clk 0:00:13]} 47... Re1 {[%clk 0:00:05.9]} 48. f3 {[%clk 0:00:11.5]}
48... f5 {[%clk 0:00:05]} 49. Bd3 {[%clk 0:00:06.2]} 49... Re3 {[%clk
0:00:05.4]} 50. Bc4 {[%clk 0:00:05.5]} 50... Rxf3 {[%clk 0:00:05.4]} 51. a6
{[%clk 0:00:05.9]} 51... f4 {[%clk 0:00:04.9]} 52. a7 {[%clk 0:00:05.6]} 52...
Ra3 {[%clk 0:00:05.5]} 53. Kb6 {[%clk 0:00:05.2]} 53... Ra4 {[%clk 0:00:04.7]}
54. Bb5 {[%clk 0:00:04.3]} 54... Ra1 {[%clk 0:00:04.2]} 55. Rh8 {[%clk
0:00:04.4]} 55... Bg4 {[%clk 0:00:03.6]} 56. Rd8+ {[%clk 0:00:03.9]} 56... Ke5
{[%clk 0:00:02.8]} 57. a8=Q {[%clk 0:00:04.8]} 57... Rxa8 {[%clk 0:00:02.1]} 58.
Rxa8 {[%clk 0:00:05.7]} 58... f3 {[%clk 0:00:02.6]} 59. Rh8 {[%clk 0:00:06]}
59... f2 {[%clk 0:00:02.8]} 60. Kc5 {[%clk 0:00:05.6]} 60... Bf3 {[%clk
0:00:02]} 61. Rxh3 {[%clk 0:00:05]} 61... Bg2 {[%clk 0:00:02.9]} 62. Re3+ {[%clk
0:00:05.4]} 62... Kf4 {[%clk 0:00:02.9]} 63. Re8 {[%clk 0:00:06]} 63... f1=Q
{[%clk 0:00:03.8]} 64. Bxf1 {[%clk 0:00:05.6]} 1-0

[Event "*** SCC Grand Prix: Titled Tuesday Blitz"]
[Site "Chess.com"]
[Date "2020.08.11"]
[Round "3"]
[White "Jovidon91"]
[Black "serena-maria"]
[Result "0-1"]
[WhiteElo "2437"]
[BlackElo "2281"]
[TimeControl "180+1"]
[EndTime "10:30:50 PDT"]
[Termination "serena-maria won by resignation"]

1. d4 {[%clk 0:03:00.9]} 1... Nf6 {[%clk 0:02:59.2]} 2. c4 {[%clk 0:02:59.5]}
2... g6 {[%clk 0:02:59.6]} 3. Nf3 {[%clk 0:02:58.7]} 3... Bg7 {[%clk 0:02:59.1]}
4. Nc3 {[%clk 0:02:58.8]} 4... d5 {[%clk 0:02:59.6]} 5. Bf4 {[%clk 0:02:53.7]}
5... O-O {[%clk 0:02:58.7]} 6. e3 {[%clk 0:02:53.6]} 6... c5 {[%clk 0:02:58.2]}
7. dxc5 {[%clk 0:02:46.6]} 7... Qa5 {[%clk 0:02:54.4]} 8. Be5 {[%clk 0:02:40.9]}
8... dxc4 {[%clk 0:02:46.8]} 9. Bxc4 {[%clk 0:02:38.3]} 9... Qxc5 {[%clk
0:02:46]} 10. Bb3 {[%clk 0:02:24.7]} 10... Bg4 {[%clk 0:02:42.5]} 11. Bd4 {[%clk
0:02:21.9]} 11... Qh5 {[%clk 0:02:41.5]} 12. Nd5 {[%clk 0:01:47]} 12... Nxd5
{[%clk 0:02:07.9]} 13. Bxg7 {[%clk 0:01:47.9]} 13... Nxe3 {[%clk 0:02:00.1]} 14.
fxe3 {[%clk 0:01:43.7]} 14... Bxf3 {[%clk 0:01:44]} 15. Qd4 {[%clk 0:01:29.1]}
15... Nc6 {[%clk 0:01:34.1]} 16. Qc3 {[%clk 0:01:23.4]} 16... Bxg2 {[%clk
0:00:57.8]} 17. Bxf8 {[%clk 0:01:21.5]} 17... Qh4+ {[%clk 0:00:51.1]} 18. Kd2
{[%clk 0:01:04.6]} 18... Qf2+ {[%clk 0:00:42.9]} 19. Kc1 {[%clk 0:01:02.6]}
19... Rxf8 {[%clk 0:00:41.7]} 20. Rd1 {[%clk 0:00:50.1]} 20... Bh3 {[%clk
0:00:14.6]} 21. Qd2 {[%clk 0:00:47.2]} 21... Qf6 {[%clk 0:00:10.4]} 22. Qc3
{[%clk 0:00:45.1]} 22... Ne5 {[%clk 0:00:10.4]} 23. Bc2 {[%clk 0:00:33.5]} 23...
Rc8 {[%clk 0:00:09.3]} 24. Qd4 {[%clk 0:00:32]} 24... Qf2 {[%clk 0:00:05.3]} 25.
Qd2 {[%clk 0:00:27.9]} 25... Qf6 {[%clk 0:00:02.8]} 26. Kb1 {[%clk 0:00:27.4]}
26... Nc4 {[%clk 0:00:02.7]} 27. Qc3 {[%clk 0:00:23.4]} 27... Qb6 {[%clk
0:00:03.3]} 28. Qd4 {[%clk 0:00:16.8]} 28... Qc7 {[%clk 0:00:02.7]} 29. Bb3
{[%clk 0:00:15]} 29... Nd6 {[%clk 0:00:02.3]} 30. e4 {[%clk 0:00:13.3]} 30...
Bg2 {[%clk 0:00:02.4]} 31. a3 {[%clk 0:00:08.9]} 31... Bxe4+ {[%clk 0:00:02]}
32. Ka2 {[%clk 0:00:09.8]} 32... Qb6 {[%clk 0:00:02.3]} 33. Qxb6 {[%clk
0:00:08.5]} 33... axb6 {[%clk 0:00:03.2]} 34. Rac1 {[%clk 0:00:08.3]} 34... Rxc1
{[%clk 0:00:01.6]} 35. Rxc1 {[%clk 0:00:09.2]} 35... Bc6 {[%clk 0:00:02.3]} 36.
Re1 {[%clk 0:00:10.1]} 36... e6 {[%clk 0:00:02.2]} 37. Bc2 {[%clk 0:00:10.4]}
37... f5 {[%clk 0:00:02.1]} 38. b4 {[%clk 0:00:11.3]} 38... Kf7 {[%clk
0:00:02.3]} 39. Kb2 {[%clk 0:00:12.2]} 39... Bd5 {[%clk 0:00:02.7]} 40. Kc3
{[%clk 0:00:12.4]} 40... b5 {[%clk 0:00:03.2]} 41. Bd3 {[%clk 0:00:08.9]} 41...
Nc4 {[%clk 0:00:02.9]} 42. Kd4 {[%clk 0:00:08.7]} 42... Nxa3 {[%clk 0:00:02.8]}
43. Kc5 {[%clk 0:00:08.7]} 43... Nc4 {[%clk 0:00:03.2]} 44. Bxc4 {[%clk
0:00:08.8]} 44... Bxc4 {[%clk 0:00:03.4]} 45. Kd6 {[%clk 0:00:08.2]} 45... Kf6
{[%clk 0:00:03.8]} 46. Re3 {[%clk 0:00:08.3]} 46... g5 {[%clk 0:00:04.3]} 47.
Rh3 {[%clk 0:00:07.7]} 47... h6 {[%clk 0:00:04]} 48. Rxh6+ {[%clk 0:00:07.3]}
48... Kg7 {[%clk 0:00:04.6]} 49. Rh3 {[%clk 0:00:08.2]} 49... g4 {[%clk
0:00:04.6]} 50. Re3 {[%clk 0:00:08.1]} 50... Kf6 {[%clk 0:00:04.8]} 51. Rc3
{[%clk 0:00:09]} 51... f4 {[%clk 0:00:05.1]} 52. Kc5 {[%clk 0:00:08.5]} 52... f3
{[%clk 0:00:05.2]} 53. Kd4 {[%clk 0:00:09.4]} 53... f2 {[%clk 0:00:05.6]} 54.
Rc1 {[%clk 0:00:08.8]} 54... f1=Q {[%clk 0:00:05.9]} 55. Rxf1+ {[%clk
0:00:09.3]} 55... Bxf1 {[%clk 0:00:06.7]} 56. Ke3 {[%clk 0:00:10.2]} 56... Bc4
{[%clk 0:00:07.6]} 57. Kf2 {[%clk 0:00:11.1]} 57... Ke5 {[%clk 0:00:08.5]} 58.
Kg3 {[%clk 0:00:12]} 58... Kd4 {[%clk 0:00:09.4]} 59. Kxg4 {[%clk 0:00:12.9]}
59... Kc3 {[%clk 0:00:10.3]} 60. Kf4 {[%clk 0:00:13.8]} 60... Kxb4 {[%clk
0:00:11.2]} 61. Ke5 {[%clk 0:00:14.3]} 61... Kc3 {[%clk 0:00:12.1]} 62. h4
{[%clk 0:00:14.6]} 62... Bd3 {[%clk 0:00:13]} 63. h5 {[%clk 0:00:15.5]} 63... b4
{[%clk 0:00:13.9]} 64. h6 {[%clk 0:00:16.4]} 64... b3 {[%clk 0:00:14.4]} 65.
Kxe6 {[%clk 0:00:16.7]} 65... b2 {[%clk 0:00:14.5]} 66. h7 {[%clk 0:00:17.6]}
66... Bxh7 {[%clk 0:00:14.1]} 0-1

[Event "*** SCC Grand Prix: Titled Tuesday Blitz"]
[Site "Chess.com"]
[Date "2020.08.11"]
[Round "3"]
[White "yobdc"]
[Black "deribas12345"]
[Result "0-1"]
[WhiteElo "2385"]
[BlackElo "2600"]
[TimeControl "180+1"]
[EndTime "10:30:57 PDT"]
[Termination "deribas12345 won on time"]

1. d4 {[%clk 0:03:00.9]} 1... Nf6 {[%clk 0:02:56.6]} 2. Bf4 {[%clk 0:03:00.8]}
2... c5 {[%clk 0:02:54.5]} 3. d5 {[%clk 0:03:00.3]} 3... d6 {[%clk 0:02:54.9]}
4. Nc3 {[%clk 0:03:00.2]} 4... g6 {[%clk 0:02:55.4]} 5. e4 {[%clk 0:03:00.5]}
5... Bg7 {[%clk 0:02:56.1]} 6. Nf3 {[%clk 0:03:00.9]} 6... O-O {[%clk 0:02:56]}
7. Bd3 {[%clk 0:02:57.8]} 7... b5 {[%clk 0:02:50.9]} 8. O-O {[%clk 0:02:49.8]}
8... c4 {[%clk 0:02:42.4]} 9. Be2 {[%clk 0:02:49.9]} 9... b4 {[%clk 0:02:39.1]}
10. Na4 {[%clk 0:02:39.4]} 10... Ba6 {[%clk 0:02:29.9]} 11. Nd2 {[%clk
0:02:24.5]} 11... Qc7 {[%clk 0:02:29]} 12. c3 {[%clk 0:02:22.3]} 12... bxc3
{[%clk 0:02:07.7]} 13. Nxc3 {[%clk 0:02:17.4]} 13... Nbd7 {[%clk 0:02:07.9]} 14.
Rc1 {[%clk 0:02:15.2]} 14... Rab8 {[%clk 0:02:06.2]} 15. b3 {[%clk 0:02:15.3]}
15... Nh5 {[%clk 0:01:59.8]} 16. Bg5 {[%clk 0:02:13.3]} 16... cxb3 {[%clk
0:01:55.7]} 17. Bxa6 {[%clk 0:02:09.8]} 17... b2 {[%clk 0:01:55.8]} 18. Rc2
{[%clk 0:02:01.8]} 18... Bxc3 {[%clk 0:01:50.6]} 19. Nb1 {[%clk 0:02:01.9]}
19... Qa5 {[%clk 0:01:46.9]} 20. Rxc3 {[%clk 0:01:46.5]} 20... Qxa6 {[%clk
0:01:44.5]} 21. Bxe7 {[%clk 0:01:46.8]} 21... Rfe8 {[%clk 0:01:44]} 22. Rc6
{[%clk 0:01:46.8]} 22... Qxa2 {[%clk 0:01:29.4]} 23. Bxd6 {[%clk 0:01:46.9]}
23... Rb7 {[%clk 0:01:24]} 24. Ba3 {[%clk 0:01:31.7]} 24... Rxe4 {[%clk
0:01:07.7]} 25. Rc8+ {[%clk 0:01:30]} 25... Kg7 {[%clk 0:01:07.6]} 26. Qd3
{[%clk 0:01:23.7]} 26... Nhf6 {[%clk 0:01:00.2]} 27. f3 {[%clk 0:01:07.6]} 27...
Ra4 {[%clk 0:00:43.2]} 28. Rd1 {[%clk 0:00:59.6]} 28... Rb3 {[%clk 0:00:34.9]}
29. Qc2 {[%clk 0:00:56.8]} 29... Raxa3 {[%clk 0:00:32.5]} 30. Nxa3 {[%clk
0:00:56.4]} 30... Qxa3 {[%clk 0:00:29.6]} 31. Rb1 {[%clk 0:00:53.3]} 31... Nxd5
{[%clk 0:00:25.4]} 32. Qe4 {[%clk 0:00:44.2]} 32... N5f6 {[%clk 0:00:20.6]} 33.
Qd4 {[%clk 0:00:42.6]} 33... Qb4 {[%clk 0:00:17.6]} 34. Rc4 {[%clk 0:00:40.7]}
34... Qb6 {[%clk 0:00:16.9]} 35. Qxb6 {[%clk 0:00:36.8]} 35... Nxb6 {[%clk
0:00:17.8]} 36. Rc2 {[%clk 0:00:32.1]} 36... Nfd5 {[%clk 0:00:16.2]} 37. Rcxb2
{[%clk 0:00:31.1]} 37... Rxb2 {[%clk 0:00:17.1]} 38. Rxb2 {[%clk 0:00:32]} 38...
a5 {[%clk 0:00:17.7]} 39. Rb5 {[%clk 0:00:29.8]} 39... a4 {[%clk 0:00:17.2]} 40.
Ra5 {[%clk 0:00:30.2]} 40... Nc3 {[%clk 0:00:15.2]} 41. Kf2 {[%clk 0:00:28.2]}
41... Kf6 {[%clk 0:00:15.2]} 42. Ke3 {[%clk 0:00:28.4]} 42... Ke6 {[%clk
0:00:15.6]} 43. Kd4 {[%clk 0:00:26.9]} 43... Ncd5 {[%clk 0:00:15.3]} 44. Kc5
{[%clk 0:00:24.7]} 44... Ke5 {[%clk 0:00:14.1]} 45. g3 {[%clk 0:00:24.3]} 45...
f5 {[%clk 0:00:13.9]} 46. Ra7 {[%clk 0:00:21.6]} 46... h5 {[%clk 0:00:13.3]} 47.
h4 {[%clk 0:00:21.1]} 47... f4 {[%clk 0:00:11.9]} 48. g4 {[%clk 0:00:21.5]}
48... hxg4 {[%clk 0:00:11.9]} 49. fxg4 {[%clk 0:00:22.4]} 49... f3 {[%clk
0:00:12.4]} 50. Rf7 {[%clk 0:00:20.5]} 50... Ke4 {[%clk 0:00:11]} 51. h5 {[%clk
0:00:20.3]} 51... gxh5 {[%clk 0:00:11.2]} 52. gxh5 {[%clk 0:00:21.2]} 52... a3
{[%clk 0:00:11.9]} 53. h6 {[%clk 0:00:19.9]} 53... a2 {[%clk 0:00:12.3]} 54. Ra7
{[%clk 0:00:19.8]} 54... f2 {[%clk 0:00:10.7]} 55. h7 {[%clk 0:00:18.8]} 55...
f1=Q {[%clk 0:00:10.9]} 56. h8=Q {[%clk 0:00:19.1]} 56... Qc4+ {[%clk
0:00:10.6]} 57. Kd6 {[%clk 0:00:19.3]} 57... Qb4+ {[%clk 0:00:10.9]} 58. Ke6
{[%clk 0:00:16.5]} 58... Nf4+ {[%clk 0:00:11]} 59. Kf7 {[%clk 0:00:15.8]} 59...
Qc4+ {[%clk 0:00:09.4]} 60. Ke7 {[%clk 0:00:14.1]} 60... Nbd5+ {[%clk
0:00:08.2]} 61. Kf7 {[%clk 0:00:08.7]} 61... Nc3+ {[%clk 0:00:06]} 62. Ke7
{[%clk 0:00:07.8]} 62... Ncd5+ {[%clk 0:00:04.4]} 63. Kd6 {[%clk 0:00:07.3]}
63... Qb4+ {[%clk 0:00:04.1]} 64. Kd7 {[%clk 0:00:04.4]} 64... Qb5+ {[%clk
0:00:04.5]} 65. Kd6 {[%clk 0:00:01.5]} 65... Qb6+ {[%clk 0:00:04.6]} 0-1